bitfinex/quotes_SOLUSD_20220212
["timestamp","ask_amount","ask_price","bid_price","bid_amount"]
[1644679267493,1.46801817,94.052,94.03,31.2707]
[1644679267693,1.46801817,94.051,94.03,31.2707]
[1644679267893,1.46801817,94.045,94.03,31.2707]
[1644679268096,1.46801817,94.043,94.03,31.2707]
[1644679268294,1.46801817,94.047,94.03,31.2707]
[1644679268496,1.46801817,94.047,94.03,15.32]
[1644679268702,1.46801817,94.047,93.994,2.62390296]
[1644679268703,1.46801817,94.041,93.99,15.32]
[1644679268896,1.46801817,94.031,93.97,15.32]
[1644679269095,1.46801817,94.026,93.98,15.32]
[1644679269297,1.46801817,94.022,93.98,15.32]
[1644679270000,1.46801817,94.023,93.98,15.32]
[1644679270395,1.46801817,94.023,93.98,31.2796]
[1644679270599,1.46801817,94.025,93.98,31.2796]
[1644679270796,1.46801817,94.028,93.98,31.2796]
[1644679271013,1.46801817,94.028,93.961,5.319]
[1644679271215,1.46801817,94.025,93.94,15.32]
[1644679271415,5.569,94.027,93.94,15.32]
[1644679271416,1.46801817,94.011,93.94,15.32]
[1644679271618,5.32,94.024,93.94,15.32]
[1644679271619,51.37119965,94.01,93.94,15.32]
[1644679271819,1.46801817,94.0,93.92,15.32]
[1644679272017,1.46801817,93.994,93.92,15.32]
[1644679272217,44.80482344,93.993,93.906,5.321]
[1644679272418,69.25932344,93.993,93.904,5.322]
[1644679272618,69.25932344,93.993,93.893,2.62390296]
[1644679272819,63.68832344,93.993,93.905,2.62390296]
[1644679273019,63.68832344,93.993,93.91,15.9687]
[1644679273222,5.322,93.992,93.91,31.2887]
[1644679273421,63.68832344,93.993,93.911,7.94490296]
[1644679273619,5.321,93.992,93.911,7.94490296]
[1644679273920,23.6371,94.008,93.912,2.62390296]
[1644679274132,24.6913,94.009,93.93,15.9664]
[1644679274320,5.321,94.007,93.94,15.32]
[1644679274519,24.6913,94.009,93.941,5.32]
[1644679274720,44.54271672,94.008,93.941,5.32]
[1644679274921,44.54271672,94.008,93.941,7.94390296]
[1644679275120,44.54271672,94.008,93.942,2.62390296]
[1644679275320,24.6913,94.009,93.943,5.32]
[1644679275522,5.32,94.022,93.95,15.9617]
[1644679275725,1.46801817,94.033,93.96,15.32]
[1644679275920,1.46801817,94.042,93.96,15.32]
[1644679276121,1.46801817,94.042,93.961,22.02079763]
[1644679276325,1.46801817,94.047,93.961,24.64470059]
[1644679276523,39.77805788,94.042,93.962,2.62390296]
[1644679276820,39.77805788,94.042,93.98,15.9578]
[1644679277019,39.77805788,94.042,93.99,15.32]
[1644679277220,6.78501817,94.041,93.99,15.32]
[1644679277622,5.317,94.041,93.99,15.32]
[1644679277827,6.78501817,94.041,93.99,15.32]
[1644679278022,5.317,94.041,93.99,15.32]
[1644679278621,39.77805788,94.042,93.99,15.32]
[1644679279423,5.317,94.041,93.99,15.32]
[1644679279622,0.25,94.041,93.962,2.62390296]
[1644679279824,0.25,94.041,93.96,31.2799]
[1644679279825,1.46801817,94.038,93.96,31.2799]
[1644679280027,1.46801817,94.035,93.96,31.2799]
[1644679280425,1.46801817,94.033,93.96,31.2799]
[1644679280727,1.46801817,94.032,93.961,2.62390296]
[1644679280923,1.46801817,94.032,93.98,15.957]
[1644679281124,5.319,94.041,93.98,15.957]
[1644679281327,41.24607605,94.042,93.981,5.317]
[1644679281627,5.317,94.041,93.98,15.957]
[1644679281826,5.317,94.041,93.97,15.32]
[1644679282026,1.46801817,94.039,93.97,15.32]
[1644679282228,1.46801817,94.034,93.97,15.32]
[1644679282628,0.25,94.033,93.97,15.32]
[1644679282831,1.46801817,94.027,93.951,5.317]
[1644679283034,1.46801817,94.024,93.951,5.317]
[1644679283430,1.46801817,94.015,93.951,5.317]
[1644679283629,1.46801817,94.012,93.951,5.317]
[1644679283830,47.41201795,94.011,93.951,5.317]
[1644679284030,5.32,94.01,93.951,5.317]
[1644679284231,0.25,94.009,93.951,5.317]
[1644679285033,5.32,94.008,93.951,5.317]
[1644679285237,0.25,94.007,93.951,5.317]
[1644679285433,5.32,94.006,93.92,31.2858]
[1644679285836,0.25,94.005,93.92,31.2858]
[1644679286034,5.321,94.004,93.921,5.321]
[1644679286235,5.321,94.004,93.921,2.62390296]
[1644679286433,5.321,94.008,93.921,2.62390296]
[1644679286633,1.46801817,94.009,93.92,31.2858]
[1644679286634,1.46801817,94.007,93.922,2.62390296]
[1644679286836,5.321,94.006,93.93,15.9656]
[1644679287035,1.46801817,94.008,93.93,15.9656]
[1644679287233,48.338,94.01,93.93,15.9656]
[1644679287234,48.338,94.01,93.931,2.62390296]
[1644679288036,0.25,94.009,93.931,2.62390296]
[1644679288236,5.32,94.008,93.931,2.62390296]
[1644679288440,5.32,94.008,93.93,15.32]
[1644679288637,0.25,94.007,93.93,15.32]
[1644679288838,6.78801817,94.006,93.93,15.32]
[1644679289037,15.9701,94.0,93.903,16.70379763]
[1644679289239,1.46801817,93.992,93.91,15.32]
[1644679289438,1.46801817,93.984,93.88,17.94390296]
[1644679289638,9.10801817,93.984,93.869,16.70379763]
[1644679289842,1.46801817,93.976,93.87,15.32]
[1644679290040,1.46801817,93.973,93.87,15.32]
[1644679290241,53.16816817,93.972,93.87,15.32]
[1644679290440,51.70015,93.972,93.87,15.32]
[1644679290639,5.323,93.971,93.87,15.32]
[1644679290839,15.9759,93.97,93.87,15.32]
[1644679291041,5.323,93.969,93.87,15.32]
[1644679292040,5.323,93.971,93.87,15.32]
[1644679292840,43.1154757,93.959,93.87,15.32]
[1644679293046,29.1815,93.958,93.87,15.32]
[1644679294043,0.25,93.957,93.87,15.32]
[1644679294244,5.324,93.956,93.87,15.32]
[1644679294844,15.9784,93.95,93.87,15.32]
[1644679295256,0.25,93.949,93.87,15.32]
[1644679295443,5.574,93.949,93.87,15.32]
[1644679297546,5.324,93.949,93.871,2.62390296]
[1644679297845,5.324,93.956,93.871,36.14867199]
[1644679298046,43.1154757,93.959,93.872,139.52476903]
[1644679298246,43.1154757,93.959,93.872,36.14867199]
[1644679298446,43.1154757,93.959,93.873,46.47082128]
[1644679298645,0.25,93.958,93.873,46.47082128]
[1644679298849,5.573,93.958,93.87,15.32]
[1644679299048,0.25,93.958,93.87,15.32]
[1644679299346,48.995,93.957,93.871,2.62390296]
[1644679300348,48.995,93.957,93.87,15.32]
[1644679300549,5.324,93.956,93.87,15.32]
[1644679300748,0.25,93.956,93.87,15.32]
[1644679301749,5.574,93.956,93.87,15.32]
[1644679302049,5.574,93.956,93.871,2.62390296]
[1644679303252,5.574,93.956,93.87,15.32]
[1644679303451,5.574,93.956,93.85,15.32]
[1644679304451,2.62390296,93.955,93.85,15.32]
[1644679304652,9.49125,93.954,93.85,15.32]
[1644679304868,15.9782,93.95,93.85,15.32]
[1644679305068,5.324,93.949,93.851,2.62390296]
[1644679305268,4.16725,93.954,93.851,2.62390296]
[1644679305468,48.995,93.957,93.852,122.70379763]
[1644679305668,48.995,93.957,93.852,16.70379763]
[1644679305871,5.324,93.956,93.853,36.14867199]
[1644679306069,5.324,93.956,93.853,2.62390296]
[1644679307067,0.25,93.955,93.853,2.62390296]
[1644679307271,5.324,93.954,93.853,2.62390296]
[1644679307469,5.324,93.954,93.86,15.9753]
[1644679307674,0.25,93.953,93.87,15.32]
[1644679307870,5.324,93.952,93.87,15.32]
[1644679308071,0.25,93.953,93.87,15.32]
[1644679308272,48.995,93.957,93.871,2.62390296]
[1644679309670,48.995,93.957,93.872,5.324]
[1644679310072,48.995,93.957,93.873,2.62390296]
[1644679310273,48.995,93.957,93.88,15.9724]
[1644679310472,48.995,93.957,93.89,15.32]
[1644679310672,5.323,93.989,93.89,15.32]
[1644679310872,5.322,93.99,93.891,2.62390296]
[1644679311073,5.572,93.988,93.891,7.94590296]
[1644679311274,0.25,93.988,93.891,7.94590296]
[1644679311575,1.46801817,93.984,93.892,2.62390296]
[1644679311773,1.46801817,93.982,93.892,2.62390296]
[1644679311976,24.3387,93.981,93.892,2.62390296]
[1644679312175,5.322,93.98,93.893,5.322]
[1644679312590,0.25,93.979,93.894,2.62390296]
[1644679313880,0.25,93.98,93.9,15.9692]
[1644679314184,0.25,93.98,93.9,31.2892]
[1644679314981,5.322,93.979,93.9,33.91310296]
[1644679315181,0.25,93.978,93.9,31.2892]
[1644679315382,5.322,93.977,93.9,31.2892]
[1644679315783,5.322,93.977,93.9,15.32]
[1644679315982,5.322,93.98,93.9,15.32]
[1644679316382,1.46801817,93.977,93.9,15.32]
[1644679316585,5.322,93.976,93.9,15.32]
[1644679316786,1.46801817,93.972,93.9,15.32]
[1644679317183,5.322,93.971,93.9,15.32]
[1644679317386,1.46801817,93.962,93.9,15.32]
[1644679317583,1.46801817,93.962,93.901,2.62390296]
[1644679317785,1.46801817,93.965,93.901,2.62390296]
[1644679318186,1.46801817,93.971,93.901,2.62390296]
[1644679318384,1.46801817,93.973,93.901,2.62390296]
[1644679318786,0.25,93.972,93.901,2.62390296]
[1644679318985,0.25,93.972,93.902,5.322]
[1644679319687,0.25,93.976,93.902,5.322]
[1644679320486,5.322,93.975,93.902,5.322]
[1644679320685,1.71801817,93.977,93.901,5.322]
[1644679320886,1.46801817,93.979,93.903,2.62390296]
[1644679321088,1.46801817,93.979,93.91,15.9676]
[1644679321288,42.42077329,93.987,93.92,15.32]
[1644679321487,40.95275512,93.987,93.921,5.321]
[1644679321687,40.95275512,93.987,93.921,7.94490296]
[1644679322090,1.46801817,93.995,93.922,2.62390296]
[1644679322287,5.321,94.016,93.922,2.62390296]
[1644679322288,1.46801817,93.999,93.923,5.321]
[1644679322691,1.46801817,93.999,93.924,2.62390296]
[1644679322894,1.46801817,93.997,93.924,2.62390296]
[1644679323092,43.08638283,93.994,93.92,15.32]
[1644679323292,1.46801817,93.988,93.92,15.32]
[1644679323492,5.571,93.993,93.92,15.32]
[1644679323493,1.46801817,93.984,93.92,15.32]
[1644679323693,1.46801817,93.977,93.92,15.32]
[1644679323896,1.46801817,93.979,93.92,15.32]
[1644679324105,1.46801817,93.978,93.92,15.32]
[1644679324496,1.46801817,93.981,93.92,15.32]
[1644679324702,0.25,93.977,93.884,5.321]
[1644679324895,0.25,93.977,93.879,5.322]
[1644679324896,1.46801817,93.966,93.879,5.322]
[1644679325095,37.97362939,93.965,93.874,24.3197]
[1644679325297,1.46801817,93.963,93.874,24.3197]
[1644679325495,5.323,93.962,93.874,24.3197]
[1644679325695,22.8778,93.961,93.874,24.3197]
[1644679326196,0.25,93.96,93.874,24.3197]
[1644679326396,5.323,93.959,93.874,24.3197]
[1644679326796,5.323,93.96,93.874,24.3197]
[1644679327195,5.323,93.96,93.88,15.9728]
[1644679327398,1.46801817,93.966,93.881,5.323]
[1644679327599,1.46801817,93.972,93.881,41.31025533]
[1644679327798,1.46801817,93.986,93.883,1.49528707]
[1644679327998,1.46801817,93.987,93.884,6.81728707]
[1644679328199,1.46801817,93.991,93.888,1.49528707]
[1644679328499,41.05148463,93.991,93.92,15.9653]
[1644679328700,41.05148463,93.991,93.93,15.32]
[1644679331807,1.46801817,94.0,93.93,15.32]
[1644679332008,1.46801817,94.008,93.931,7.94490296]
[1644679332406,1.46801817,94.005,93.931,5.321]
[1644679332609,1.46801817,94.004,93.931,5.321]
[1644679332806,48.5022589,94.003,93.93,15.32]
[1644679333206,0.25,94.002,93.93,15.32]
[1644679333408,5.321,94.001,93.93,15.32]
[1644679333810,0.25,94.0,93.93,15.32]
[1644679334006,5.321,94.001,93.93,17.94390296]
[1644679336211,0.43348375,115.9,93.93,17.94390296]
[1644679336212,1.46801817,94.008,93.931,5.321]
[1644679336412,1.46801817,94.028,93.932,106.0]
[1644679336612,1.46801817,94.034,93.933,5.319]
[1644679336811,1.46801817,94.04,93.941,106.0]
[1644679337010,48.47631891,94.039,93.95,15.32]
[1644679337211,48.47631891,94.039,93.951,5.319]
[1644679337411,48.47631891,94.039,93.97,15.9564]
[1644679337613,48.47631891,94.039,93.97,31.2764]
[1644679337811,5.317,94.038,93.97,31.2764]
[1644679338211,5.317,94.038,93.971,2.62390296]
[1644679338413,1.46801817,94.054,93.99,15.9536]
[1644679338632,1.46801817,94.059,93.99,39.9236]
[1644679338828,1.46801817,94.061,93.99,39.9236]
[1644679339230,43.16871342,94.06,93.99,39.9236]
[1644679339429,44.63673159,94.06,93.99,39.9236]
[1644679339833,1.46801817,94.059,93.99,39.9236]
[1644679340032,5.317,94.058,93.991,2.62390296]
[1644679340241,37.85171342,94.06,93.991,2.62390296]
[1644679340432,5.317,94.059,93.99,31.2736]
[1644679340838,5.317,94.059,93.991,2.62390296]
[1644679341132,22.9185,94.149,94.0,15.9526]
[1644679341133,5.317,94.072,94.0,15.9526]
[1644679341334,5.317,94.073,94.0,15.9526]
[1644679341533,23.8971,94.074,94.001,7.94090296]
[1644679341935,35.24305672,94.073,94.001,7.94090296]
[1644679342138,35.49305672,94.073,94.001,7.94090296]
[1644679342336,35.49305672,94.073,94.002,2.62390296]
[1644679342535,35.49305672,94.073,94.003,5.317]
[1644679343738,5.316,94.072,94.002,2.62390296]
[1644679344138,0.25,94.071,94.002,2.62390296]
[1644679344339,5.317,94.07,94.002,2.62390296]
[1644679344737,0.25,94.069,94.002,2.62390296]
[1644679345137,5.317,94.072,94.002,2.62390296]
[1644679345341,0.25,94.071,93.991,5.316]
[1644679345539,5.317,94.07,93.992,2.62390296]
[1644679345740,23.5068,94.071,93.992,2.62390296]
[1644679346040,23.5068,94.071,93.991,5.316]
[1644679346248,1.46801817,94.067,93.97,2.62390296]
[1644679346441,1.46801817,94.061,93.956,2.62390296]
[1644679346642,15.9623,94.05,93.962,5.317]
[1644679346843,29.3447,94.049,93.956,2.62390296]
[1644679347042,30.81271817,94.049,93.956,2.62390296]
[1644679347242,1.71801817,94.048,93.956,2.62390296]
[1644679347441,5.319,94.047,93.956,2.62390296]
[1644679347844,0.25,94.046,93.956,2.62390296]
[1644679348241,42.57265154,94.044,93.956,2.62390296]
[1644679348541,5.319,94.043,93.957,5.319]
[1644679348742,15.9633,94.04,93.956,2.62390296]
[1644679348942,6.78701817,94.039,93.938,2.62390296]
[1644679349242,5.63526817,94.038,93.93,15.32]
[1644679349440,6.78801817,94.037,93.93,15.32]
[1644679349642,1.46801817,94.035,93.93,15.32]
[1644679349941,15.9653,94.03,93.931,5.32]
[1644679350142,29.4023,94.029,93.931,5.32]
[1644679350348,0.25,94.028,93.931,5.32]
[1644679350544,5.32,94.027,93.931,5.32]
[1644679350743,0.25,94.026,93.931,5.32]
[1644679350944,5.32,94.025,93.931,5.32]
[1644679351345,0.25,94.024,93.931,5.32]
[1644679352845,5.32,94.028,93.931,5.32]
[1644679352846,5.57,94.028,93.931,5.32]
[1644679354145,5.32,94.028,93.931,5.32]
[1644679354344,0.25,94.027,93.931,5.32]
[1644679354546,5.32,94.026,93.931,5.32]
[1644679354746,5.32,94.027,93.94,15.9625]
[1644679354945,5.32,94.028,93.95,15.32]
[1644679355352,1.46801817,94.05,93.951,5.319]
[1644679355548,5.319,94.043,93.951,41.12640033]
[1644679355747,5.319,94.043,93.952,35.80740033]
[1644679355947,1.46801817,94.054,93.96,15.9585]
[1644679356145,1.46801817,94.055,93.97,15.32]
[1644679356348,1.46801817,94.055,93.971,29.0988]
[1644679356548,1.46801817,94.056,93.971,29.0988]
[1644679356750,5.317,94.055,93.971,23.7818]
[1644679356950,24.5733,94.079,93.98,15.9558]
[1644679356951,1.46801817,94.051,93.98,15.9558]
[1644679357155,1.46801817,94.055,93.981,5.317]
[1644679357350,1.46801817,94.055,93.99,15.32]
[1644679357550,1.46801817,94.065,93.99,15.32]
[1644679357752,1.46801817,94.067,93.991,5.317]
[1644679358052,1.46801817,94.068,93.991,7.94090296]
[1644679358250,1.46801817,94.068,94.0,15.9517]
[1644679358450,1.46801817,94.075,94.001,5.317]
[1644679358650,1.46801817,94.071,94.001,7.94090296]
[1644679358854,1.46801817,94.072,94.002,2.62390296]
[1644679359251,1.46801817,94.07,94.002,2.62390296]
[1644679359452,40.26136281,94.069,94.002,2.62390296]
[1644679359858,1.46801817,94.069,94.002,2.62390296]
[1644679360757,1.46801817,94.067,94.002,2.62390296]
[1644679360956,1.46801817,94.068,94.01,15.9504]
[1644679361159,1.46801817,94.07,94.01,31.2704]
[1644679361358,1.46801817,94.074,94.011,2.62390296]
[1644679361957,1.46801817,94.076,94.02,15.9492]
[1644679362158,1.46801817,94.076,94.03,15.32]
[1644679362358,1.46801817,94.084,94.03,15.32]
[1644679362560,1.46801817,94.09,94.031,7.93990296]
[1644679362763,1.46801817,94.091,94.031,19.02990296]
[1644679362963,1.46801817,94.094,94.032,2.62390296]
[1644679363165,1.46801817,94.094,94.033,5.314]
[1644679363561,1.46801817,94.099,94.033,5.314]
[1644679363761,1.46801817,94.099,94.04,15.9448]
[1644679363963,1.46801817,94.1,94.04,31.2648]
[1644679364163,1.46801817,94.099,94.041,7.93790296]
[1644679364366,1.46801817,94.1,94.041,7.93790296]
[1644679364568,1.46801817,94.102,94.042,20.57062337]
[1644679364795,1.46801817,94.109,94.043,106.0]
[1644679364964,1.46801817,94.117,94.05,15.944]
[1644679365168,1.46801817,94.121,94.06,15.32]
[1644679365366,44.48278338,94.123,94.06,23.77]
[1644679365566,44.48278338,94.123,94.061,5.314]
[1644679365770,1.46801817,94.118,94.061,2.62390296]
[1644679365969,1.46801817,94.115,94.06,15.32]
[1644679366265,1.46801817,94.109,94.06,15.32]
[1644679366467,1.46801817,94.109,94.061,2.62390296]
[1644679366666,1.46801817,94.113,94.06,15.32]
[1644679366869,1.46801817,94.111,94.06,15.32]
[1644679367067,5.314,94.122,94.06,15.32]
[1644679367068,1.46801817,94.115,94.06,15.32]
[1644679367272,5.314,94.114,94.06,15.32]
[1644679367476,1.46801817,94.115,94.06,15.32]
[1644679367876,1.46801817,94.114,94.061,2.62390296]
[1644679368077,1.46801817,94.12,94.061,2.62390296]
[1644679368381,1.46801817,94.121,94.061,2.62390296]
[1644679368576,1.46801817,94.121,94.062,5.313]
[1644679368779,1.46801817,94.12,94.061,7.93790296]
[1644679368980,44.48278338,94.123,94.061,5.314]
[1644679369179,44.48278338,94.123,94.06,15.32]
[1644679369380,44.48278338,94.123,94.062,2.62390296]
[1644679369783,44.48278338,94.123,94.06,15.32]
[1644679369981,44.48278338,94.123,94.061,2.62390296]
[1644679370781,0.25,94.122,94.061,2.62390296]
[1644679371089,1.46801817,94.103,94.039,2.62390296]
[1644679371285,5.315,94.102,94.02,15.32]
[1644679371488,1.46801817,94.1,94.021,5.315]
[1644679371687,1.46801817,94.109,94.021,13.57390296]
[1644679371981,45.6286,94.122,94.03,31.2649]
[1644679372185,0.25,94.121,94.031,5.314]
[1644679372407,0.25,94.121,94.031,20.57062337]
[1644679372605,0.25,94.121,94.032,2.62390296]
[1644679372901,0.25,94.121,94.033,5.314]
[1644679373100,1.46801817,94.118,94.033,5.314]
[1644679373302,5.564,94.117,94.032,2.62390296]
[1644679373706,7.03201817,94.117,94.03,15.32]
[1644679373903,1.46801817,94.116,94.031,7.93790296]
[1644679374201,1.46801817,94.115,94.031,7.90189732]
[1644679374402,5.315,94.114,94.031,2.62390296]
[1644679374803,0.25,94.113,94.031,2.62390296]
[1644679375203,5.315,94.112,94.03,15.32]
[1644679375604,15.9514,94.11,94.03,15.32]
[1644679375805,1.47922624,94.104,94.03,15.32]
[1644679376003,1.47922624,94.103,94.03,15.32]
[1644679376207,6.79422624,94.103,94.031,2.62390296]
[1644679376403,0.25,94.102,94.031,2.62390296]
[1644679376806,0.25,94.102,94.03,15.32]
[1644679377006,5.315,94.101,94.03,15.32]
[1644679377204,0.25,94.1,94.03,15.32]
[1644679377603,5.315,94.099,94.03,15.32]
[1644679377804,0.25,94.098,94.03,15.32]
[1644679379005,5.315,94.097,94.03,15.32]
[1644679379605,23.61422624,94.109,94.03,15.32]
[1644679379804,5.315,94.108,94.03,25.34]
[1644679380209,5.315,94.108,94.03,15.32]
[1644679380407,2.62390296,94.107,94.01,15.32]
[1644679380608,5.315,94.106,94.01,15.32]
[1644679381609,15.953,94.1,94.01,15.32]
[1644679381809,5.566,94.099,94.01,15.32]
[1644679382620,5.566,94.099,94.011,2.62390296]
[1644679383110,5.316,94.099,94.011,2.62390296]
[1644679383512,23.61422624,94.109,94.011,2.62390296]
[1644679383513,23.61422624,94.109,94.012,5.316]
[1644679383815,23.61422624,94.109,94.013,2.62390296]
[1644679384013,4.79195651,94.108,94.013,2.62390296]
[1644679384712,2.95845247,94.106,94.013,2.62390296]
[1644679385112,5.315,94.105,94.014,17.94672041]
[1644679385312,5.315,94.121,94.014,17.94672041]
[1644679385513,5.315,94.119,94.015,42.98930214]
[1644679385713,33.92647003,94.12,94.03,15.32]
[1644679385911,4.80187003,94.118,94.03,31.2656]
[1644679386110,29.1246,94.12,94.031,2.62390296]
[1644679386111,5.314,94.117,94.031,2.62390296]
[1644679386312,0.25,94.117,94.031,2.62390296]
[1644679386718,0.25,94.118,94.031,2.62390296]
[1644679386912,10.1188874,94.117,94.031,2.62390296]
[1644679387116,4.8048874,94.116,94.031,2.62390296]
[1644679387318,2.95845247,94.114,94.03,15.32]
[1644679387517,2.95845247,94.108,94.015,23.7031]
[1644679387713,2.95845247,94.104,94.011,2.62390296]
[1644679388317,0.25,94.103,94.011,2.62390296]
[1644679388717,4.8048874,94.102,94.011,2.62390296]
[1644679389116,2.95845247,94.1,94.011,2.62390296]
[1644679389318,5.566,94.099,94.011,2.62390296]
[1644679389519,4.8048874,94.098,94.011,2.62390296]
[1644679389719,5.566,94.097,94.011,2.62390296]
[1644679389916,4.8048874,94.096,94.011,2.62390296]
[1644679390117,45.9917297,94.094,94.011,2.62390296]
[1644679390319,10.1208874,94.093,94.011,2.62390296]
[1644679390518,4.8048874,94.092,94.011,2.62390296]
[1644679390721,5.566,94.091,94.011,2.62390296]
[1644679391119,4.8048874,94.09,94.011,2.62390296]
[1644679391321,5.566,94.089,94.011,2.62390296]
[1644679391923,4.80266978,94.088,94.011,2.62390296]
[1644679392122,5.316,94.087,94.011,2.62390296]
[1644679392320,5.566,94.087,94.011,2.62390296]
[1644679392521,0.25,94.087,94.011,2.62390296]
[1644679393223,7.33,94.087,94.001,2.62390296]
[1644679393425,10.11552315,94.086,94.001,2.62390296]
[1644679393629,10.36552315,94.086,93.98,15.9539]
[1644679393824,10.36552315,94.086,93.95,53.1853]
[1644679393825,2.95845247,94.079,93.961,23.2586]
[1644679394027,5.317,94.078,93.981,2.62390296]
[1644679394224,4.79952315,94.077,93.965,2.62390296]
[1644679394426,4.79952315,94.077,93.97,15.9567]
[1644679394627,23.1494,94.076,93.977,17.94672041]
[1644679394824,23.1494,94.076,93.98,15.32]
[1644679395226,23.1494,94.076,93.98,33.26672041]
[1644679395425,23.1494,94.076,93.981,2.62390296]
[1644679395826,23.1494,94.076,93.99,15.9522]
[1644679396025,23.1494,94.076,93.99,31.2722]
[1644679396225,23.1494,94.076,93.991,2.62390296]
[1644679396425,5.567,94.075,93.991,2.62390296]
[1644679396624,5.567,94.075,93.976,2.62390296]
[1644679397829,0.25,94.075,93.98,15.9543]
[1644679398230,0.25,94.075,93.981,2.62390296]
[1644679398631,0.25,94.075,93.99,15.32]
[1644679398831,5.317,94.074,93.99,31.2734]
[1644679399030,5.317,94.074,93.991,2.62390296]
[1644679399228,0.25,94.073,93.991,2.62390296]
[1644679399631,5.317,94.072,93.991,2.62390296]
[1644679400229,5.317,94.075,93.991,2.62390296]
[1644679400831,5.317,94.075,94.0,15.9512]
[1644679401231,5.317,94.075,94.001,2.62390296]
[1644679401433,0.25,94.074,94.001,2.62390296]
[1644679401631,5.317,94.073,94.001,2.62390296]
[1644679401832,0.25,94.072,94.001,2.62390296]
[1644679402233,5.317,94.071,94.001,2.62390296]
[1644679402433,5.317,94.071,94.01,31.2702]
[1644679402632,5.317,94.105,94.01,31.2702]
[1644679402831,23.9772,94.121,94.01,31.2702]
[1644679402832,5.316,94.109,94.011,136.79330296]
[1644679403031,4.80507073,94.108,94.011,30.79330296]
[1644679403230,5.315,94.111,94.012,2.62390296]
[1644679403433,48.80881237,94.107,94.013,5.315]
[1644679403630,5.315,94.106,94.03,15.9453]
[1644679403831,5.565,94.106,94.03,31.2653]
[1644679404031,5.565,94.106,94.031,2.62390296]
[1644679404432,29.9209,94.106,94.031,2.62390296]
[1644679404632,5.565,94.106,94.031,2.62390296]
[1644679404840,5.565,94.106,94.04,15.9451]
[1644679405033,0.25,94.106,94.04,31.2651]
[1644679405236,0.25,94.115,94.041,2.62390296]
[1644679405433,4.8115146,94.114,94.041,2.62390296]
[1644679405835,46.46848919,94.113,94.041,2.62390296]
[1644679406134,4.8115146,94.112,94.04,15.32]
[1644679406334,5.564,94.111,94.041,2.62390296]
[1644679406535,4.8115146,94.11,94.04,15.32]
[1644679406735,5.314,94.109,94.04,15.32]
[1644679406937,0.25,94.111,94.05,15.9437]
[1644679407237,2.95845247,94.121,94.05,27.3837]
[1644679407440,2.95845247,94.123,94.051,2.62390296]
[1644679407638,2.95845247,94.124,94.051,2.62390296]
[1644679407840,0.25,94.122,94.06,15.32]
[1644679408039,24.3559,94.128,94.06,15.32]
[1644679408238,4.81123986,94.127,94.061,2.62390296]
[1644679408444,2.95845247,94.139,94.061,7.93690296]
[1644679408646,4.81123986,94.142,94.061,7.93690296]
[1644679408843,4.81123986,94.142,94.062,2.62390296]
[1644679409040,4.81123986,94.142,94.063,5.313]
[1644679409240,5.313,94.153,94.063,5.313]
[1644679409442,5.313,94.153,94.07,15.94]
[1644679409642,2.95845247,94.147,94.07,31.26]
[1644679409843,2.95845247,94.148,94.07,31.26]
[1644679410046,0.25,94.146,94.07,31.26]
[1644679410244,4.8046284,94.145,94.07,31.26]
[1644679410646,0.25,94.144,94.07,31.26]
[1644679410847,4.8046284,94.143,94.07,31.26]
[1644679411047,22.938,94.147,94.071,2.62390296]
[1644679411647,5.312,94.146,94.072,5.312]